[Event "*** Titled Tuesday 3|2 Blitz"]
[Site "Chess.com"]
[Date "2016.06.07"]
[Round "4"]
[White "MateusViageiro"]
[Black "Boorchess"]
[Result "1/2-1/2"]
[WhiteElo "2295"]
[BlackElo "2359"]
[TimeControl "180+2"]
[EndTime "11:52:38 PDT"]
[Termination "Game drawn by agreement"]

1. e4 {[%clk 0:03:01.9]} 1... c5 {[%clk 0:02:57.4]} 2. Nf3 {[%clk 0:03:01.9]}
2... Nc6 {[%clk 0:02:58.4]} 3. d4 {[%clk 0:02:57.9]} 3... cxd4 {[%clk 0:02:59]}
4. Nxd4 {[%clk 0:02:58.5]} 4... e5 {[%clk 0:03:00.5]} 5. Nb5 {[%clk 0:02:58.1]}
5... d6 {[%clk 0:03:01.4]} 6. c4 {[%clk 0:02:56.1]} 6... Be7 {[%clk 0:02:59.6]}
7. N1c3 {[%clk 0:02:56.4]} 7... a6 {[%clk 0:03:00.1]} 8. Na3 {[%clk 0:02:56.3]}
8... Nf6 {[%clk 0:03:00.9]} 9. Be2 {[%clk 0:02:56]} 9... O-O {[%clk 0:03:01.6]}
10. Bg5 {[%clk 0:02:52.6]} 10... Be6 {[%clk 0:02:59.8]} 11. O-O {[%clk
0:02:51.7]} 11... Nxe4 {[%clk 0:02:54.3]} 12. Nxe4 {[%clk 0:02:40.6]} 12... Bxg5
{[%clk 0:02:54.7]} 13. Nxg5 {[%clk 0:02:41.4]} 13... Qxg5 {[%clk 0:02:53.4]} 14.
Qxd6 {[%clk 0:02:42.3]} 14... Nd4 {[%clk 0:02:54]} 15. Rfe1 {[%clk 0:02:29.2]}
15... Bh3 {[%clk 0:02:50]} 16. g3 {[%clk 0:02:20.2]} 16... Rad8 {[%clk
0:02:46.7]} 17. Qb6 {[%clk 0:02:12.9]} 17... Qd2 {[%clk 0:02:33.4]} 18. Bh5
{[%clk 0:01:41.7]} 18... g6 {[%clk 0:02:16.3]} 19. Rxe5 {[%clk 0:01:31.8]} 19...
gxh5 {[%clk 0:02:06]} 20. Qf6 {[%clk 0:01:20.9]} 20... h6 {[%clk 0:01:29.8]} 21.
Rae1 {[%clk 0:01:18.8]} 21... Bg4 {[%clk 0:01:27.3]} 22. R5e3 {[%clk 0:01:04.4]}
22... Qxb2 {[%clk 0:01:09.4]} 23. Qxh6 {[%clk 0:01:01.5]} 23... Ne6 {[%clk
0:01:02.3]} 24. h3 {[%clk 0:00:52.4]} 24... Qg7 {[%clk 0:00:50.6]} 25. Qxg7+
{[%clk 0:00:49.6]} 25... Kxg7 {[%clk 0:00:52.5]} 26. hxg4 {[%clk 0:00:50.6]}
26... hxg4 {[%clk 0:00:54.4]} 27. Re4 {[%clk 0:00:49.3]} 27... Rd4 {[%clk
0:00:49.3]} 28. Nc2 {[%clk 0:00:46.1]} 28... Rd2 {[%clk 0:00:44.1]} 29. Rxg4+
{[%clk 0:00:46.4]} 29... Kf6 {[%clk 0:00:44.3]} 30. Ne3 {[%clk 0:00:45.9]} 30...
Rxa2 {[%clk 0:00:45.1]} 31. Nd5+ {[%clk 0:00:45.4]} 31... Kf5 {[%clk 0:00:45.5]}
32. Ne3+ {[%clk 0:00:39.7]} 32... Ke5 {[%clk 0:00:45.4]} 33. Rd1 {[%clk
0:00:39]} 33... b5 {[%clk 0:00:39.3]} 34. Rd5+ {[%clk 0:00:36.5]} 34... Kf6
{[%clk 0:00:40.3]} 35. cxb5 {[%clk 0:00:37.6]} 35... axb5 {[%clk 0:00:41]} 36.
Rxb5 {[%clk 0:00:38.4]} 36... Rd8 {[%clk 0:00:42.3]} 37. Rf5+ {[%clk 0:00:38.5]}
37... Ke7 {[%clk 0:00:43.1]} 38. Nd5+ {[%clk 0:00:38.7]} 38... Kf8 {[%clk
0:00:44.5]} 39. Nf6 {[%clk 0:00:38]} 39... Ng7 {[%clk 0:00:39.8]} 40. Rfg5
{[%clk 0:00:33.6]} 40... Ne6 {[%clk 0:00:38.9]} 41. Rg8+ {[%clk 0:00:30.6]}
41... Ke7 {[%clk 0:00:40.1]} 42. Rxd8 {[%clk 0:00:29.9]} 42... Nxd8 {[%clk
0:00:41.6]} 43. Ne4 {[%clk 0:00:30.7]} 43... f5 {[%clk 0:00:41]} 44. Rg7+ {[%clk
0:00:30.6]} 44... Kf8 {[%clk 0:00:41.6]} 45. Rd7 {[%clk 0:00:31.4]} 45... Nf7
{[%clk 0:00:33]} 46. Nd6 {[%clk 0:00:30.7]} 46... Nxd6 {[%clk 0:00:31.9]} 47.
Rxd6 {[%clk 0:00:31.7]} 47... Kf7 {[%clk 0:00:33.4]} 48. Kg2 {[%clk 0:00:32.9]}
48... Ra4 {[%clk 0:00:34.4]} 49. Kf3 {[%clk 0:00:33.5]} 49... Rb4 {[%clk
0:00:35.3]} 50. Rc6 {[%clk 0:00:33.6]} 50... Ra4 {[%clk 0:00:36.2]} 51. Rb6
{[%clk 0:00:33.8]} 51... Rc4 {[%clk 0:00:36.3]} 52. Kg2 {[%clk 0:00:34.8]} 52...
Ra4 {[%clk 0:00:37]} 53. Kh3 {[%clk 0:00:35.6]} 53... Ra2 {[%clk 0:00:33.2]} 54.
f4 {[%clk 0:00:35.7]} 54... Ra8 {[%clk 0:00:29.8]} 55. Rh6 {[%clk 0:00:32.8]}
55... Kg7 {[%clk 0:00:29.8]} 56. Rc6 {[%clk 0:00:31.9]} 56... Rh8+ {[%clk
0:00:30.2]} 57. Kg2 {[%clk 0:00:32.1]} 57... Ra8 {[%clk 0:00:30.9]} 58. Kh3
{[%clk 0:00:32.5]} 58... Rh8+ {[%clk 0:00:31.5]} 59. Kg2 {[%clk 0:00:33.6]}
59... Ra8 {[%clk 0:00:33.2]} 60. Rd6 {[%clk 0:00:33]} 60... Rb8 {[%clk
0:00:33.4]} 61. Rc6 {[%clk 0:00:33.5]} 61... Ra8 {[%clk 0:00:34.5]} 62. Kf3
{[%clk 0:00:33]} 62... Ra3+ {[%clk 0:00:34.9]} 63. Kg2 {[%clk 0:00:33.6]} 63...
Ra8 {[%clk 0:00:35.5]} 64. Re6 {[%clk 0:00:33.9]} 64... Rb8 {[%clk 0:00:36.3]}
65. Kf3 {[%clk 0:00:34]} 65... Rb3+ {[%clk 0:00:35.8]} 66. Re3 {[%clk
0:00:34.9]} 66... Rb1 {[%clk 0:00:36.4]} 67. Ra3 {[%clk 0:00:33.5]} 67... Rb6
{[%clk 0:00:33]} 68. Ke3 {[%clk 0:00:34.2]} 68... Kf6 {[%clk 0:00:32.5]} 69. Kd4
{[%clk 0:00:35.3]} 69... Re6 {[%clk 0:00:33.3]} 70. Re3 {[%clk 0:00:34.1]} 70...
Rd6+ {[%clk 0:00:33]} 71. Kc5 {[%clk 0:00:35.1]} 71... Rd1 {[%clk 0:00:33.5]}
72. Rc3 {[%clk 0:00:34.2]} 72... Kg6 {[%clk 0:00:33.1]} 73. Re3 {[%clk
0:00:29.2]} 73... Kh5 {[%clk 0:00:32.8]} 74. Re8 {[%clk 0:00:29.3]} 74... Kg4
{[%clk 0:00:33.2]} 75. Rg8+ {[%clk 0:00:30.2]} 75... Kf3 {[%clk 0:00:33.6]} 76.
Rg5 {[%clk 0:00:31.1]} 76... Ke4 {[%clk 0:00:34.8]} 77. g4 {[%clk 0:00:29.1]}
77... Kxf4 {[%clk 0:00:34.1]} 78. Rxf5+ {[%clk 0:00:29.3]} 78... Kxg4 {[%clk
0:00:35.3]} 79. Rd5 {[%clk 0:00:29.7]} 1/2-1/2

[Event "*** Titled Tuesday 3|2 Blitz"]
[Site "Chess.com"]
[Date "2016.06.07"]
[Round "4"]
[White "biostatistician"]
[Black "Iball95"]
[Result "1-0"]
[WhiteElo "2310"]
[BlackElo "2456"]
[TimeControl "180+2"]
[EndTime "11:52:40 PDT"]
[Termination "biostatistician won by resignation"]

1. d4 {[%clk 0:03:01.9]} 1... d5 {[%clk 0:03:00.3]} 2. Nf3 {[%clk 0:03:03]} 2...
Nf6 {[%clk 0:03:00.6]} 3. c4 {[%clk 0:03:04.9]} 3... c6 {[%clk 0:03:01.7]} 4.
cxd5 {[%clk 0:03:05.7]} 4... cxd5 {[%clk 0:03:03.6]} 5. Nc3 {[%clk 0:03:07.2]}
5... Nc6 {[%clk 0:03:04.9]} 6. Bf4 {[%clk 0:03:08.7]} 6... Bf5 {[%clk
0:03:02.7]} 7. e3 {[%clk 0:03:09.4]} 7... a6 {[%clk 0:03:03]} 8. Bd3 {[%clk
0:03:08.4]} 8... Bxd3 {[%clk 0:03:03.4]} 9. Qxd3 {[%clk 0:03:10.3]} 9... e6
{[%clk 0:03:05.3]} 10. O-O {[%clk 0:03:11.7]} 10... Bd6 {[%clk 0:03:06.5]} 11.
Bxd6 {[%clk 0:03:12]} 11... Qxd6 {[%clk 0:03:08.4]} 12. Na4 {[%clk 0:03:13.6]}
12... O-O {[%clk 0:02:57.3]} 13. Nc5 {[%clk 0:03:13.5]} 13... Rfb8 {[%clk
0:02:35.6]} 14. Rfc1 {[%clk 0:03:12.7]} 14... Nd7 {[%clk 0:02:36.2]} 15. Nxd7
{[%clk 0:02:56.2]} 15... Qxd7 {[%clk 0:02:37.1]} 16. Rc5 {[%clk 0:02:57.8]}
16... b6 {[%clk 0:02:29.7]} 17. Rc3 {[%clk 0:02:57.6]} 17... Nb4 {[%clk
0:02:27.6]} 18. Qd2 {[%clk 0:02:56.7]} 18... a5 {[%clk 0:02:16.3]} 19. Ne5
{[%clk 0:02:51.7]} 19... Qe8 {[%clk 0:02:10]} 20. Rc7 {[%clk 0:02:43.3]} 20...
f6 {[%clk 0:02:08.8]} 21. Nd7 {[%clk 0:02:43.7]} 21... Rc8 {[%clk 0:01:55.7]}
22. Qc3 {[%clk 0:01:48.4]} 22... Na6 {[%clk 0:01:42.2]} 23. Rxc8 {[%clk
0:01:37.6]} 23... Rxc8 {[%clk 0:01:44.1]} 24. Qd3 {[%clk 0:01:34.4]} 24... Nb4
{[%clk 0:01:30.9]} 25. Qb5 {[%clk 0:01:34.1]} 25... Rc6 {[%clk 0:01:31.8]} 26.
Nxf6+ {[%clk 0:00:10.2]} 26... gxf6 {[%clk 0:01:31]} 27. Qe2 {[%clk 0:00:12.1]}
27... Rc2 {[%clk 0:01:17.7]} 28. Qg4+ {[%clk 0:00:11.6]} 28... Kh8 {[%clk
0:01:17]} 29. a3 {[%clk 0:00:09.2]} 29... Nd3 {[%clk 0:01:09.1]} 30. Qd1 {[%clk
0:00:09.4]} 30... Qc6 {[%clk 0:00:50.8]} 31. Qxd3 {[%clk 0:00:10.1]} 31... Rc1+
{[%clk 0:00:51.7]} 32. Rxc1 {[%clk 0:00:11.7]} 32... Qxc1+ {[%clk 0:00:53.4]}
33. Qf1 {[%clk 0:00:13.6]} 33... Qxb2 {[%clk 0:00:54.9]} 34. a4 {[%clk
0:00:12.5]} 34... Qb3 {[%clk 0:00:48.7]} 35. Qa1 {[%clk 0:00:12]} 35... b5
{[%clk 0:00:48.9]} 36. axb5 {[%clk 0:00:13.9]} 36... Qxb5 {[%clk 0:00:50.4]} 37.
h4 {[%clk 0:00:14.4]} 37... a4 {[%clk 0:00:50.3]} 38. Qc3 {[%clk 0:00:15.2]}
38... Qc4 {[%clk 0:00:50.4]} 39. Qa5 {[%clk 0:00:15.4]} 39... Kg7 {[%clk
0:00:35.8]} 40. Qa7+ {[%clk 0:00:12.4]} 40... Kg6 {[%clk 0:00:36.5]} 41. Qe7
{[%clk 0:00:12.9]} 41... Qc6 {[%clk 0:00:32.8]} 42. g4 {[%clk 0:00:11.7]} 42...
e5 {[%clk 0:00:14.5]} 43. Kg2 {[%clk 0:00:07.8]} 43... exd4 {[%clk 0:00:14.1]}
44. exd4 {[%clk 0:00:09.7]} 44... Qc8 {[%clk 0:00:12.9]} 45. h5+ {[%clk
0:00:09.9]} 45... Kg5 {[%clk 0:00:12.5]} 46. Qg7+ {[%clk 0:00:10.8]} 46... Kf4
{[%clk 0:00:13.5]} 47. Kh3 {[%clk 0:00:06.2]} 47... a3 {[%clk 0:00:13.5]} 48.
Qxf6+ {[%clk 0:00:06.7]} 48... Ke4 {[%clk 0:00:14.9]} 49. Qe5+ {[%clk
0:00:07.7]} 49... Kd3 {[%clk 0:00:16.4]} 50. Qxd5 {[%clk 0:00:09.3]} 50... Qc3
{[%clk 0:00:17.1]} 51. Qf5+ {[%clk 0:00:09.9]} 51... Kxd4+ {[%clk 0:00:16]} 52.
Kh4 {[%clk 0:00:10.9]} 52... Kc4 {[%clk 0:00:15.6]} 53. Qc8+ {[%clk 0:00:10.7]}
53... Kb3 {[%clk 0:00:16.6]} 54. Qb7+ {[%clk 0:00:12.3]} 54... Kc2 {[%clk
0:00:18]} 55. Qxh7+ {[%clk 0:00:13.4]} 55... Kb2 {[%clk 0:00:19.2]} 56. Qb7+
{[%clk 0:00:14]} 56... Qb3 {[%clk 0:00:20.5]} 57. Qg7+ {[%clk 0:00:14.8]} 57...
Kc2 {[%clk 0:00:21.6]} 58. h6 {[%clk 0:00:15.2]} 58... a2 {[%clk 0:00:21.5]} 59.
h7 {[%clk 0:00:16.5]} 59... Qf3 {[%clk 0:00:11.6]} 60. h8=Q {[%clk 0:00:16.7]}
60... Qxf2+ {[%clk 0:00:13.5]} 61. Kg5 {[%clk 0:00:18]} 61... Qe3+ {[%clk
0:00:13.6]} 62. Kf5 {[%clk 0:00:19.2]} 62... Qf3+ {[%clk 0:00:14.7]} 63. Ke5
{[%clk 0:00:19.8]} 63... Qe3+ {[%clk 0:00:15.4]} 64. Kd5 {[%clk 0:00:21.1]}
64... Qb3+ {[%clk 0:00:15.4]} 65. Kc5 {[%clk 0:00:21.8]} 65... Qa3+ {[%clk
0:00:16.4]} 66. Kb5 {[%clk 0:00:23.2]} 66... Qb3+ {[%clk 0:00:17.6]} 67. Ka5
{[%clk 0:00:24.8]} 67... Qa3+ {[%clk 0:00:18.6]} 68. Kb6 {[%clk 0:00:26.4]}
68... Qb4+ {[%clk 0:00:19.5]} 69. Kc7 {[%clk 0:00:28]} 69... Qc5+ {[%clk
0:00:20]} 70. Kd7 {[%clk 0:00:29.5]} 70... Qd5+ {[%clk 0:00:20.7]} 71. Ke7
{[%clk 0:00:31.1]} 71... Qc5+ {[%clk 0:00:22]} 72. Kf7 {[%clk 0:00:32.3]} 72...
Qd5+ {[%clk 0:00:22.1]} 73. Kg6 {[%clk 0:00:33.2]} 73... Qe4+ {[%clk 0:00:19.3]}
74. Kh5 {[%clk 0:00:33]} 74... Qh1+ {[%clk 0:00:20.2]} 75. Kg5 {[%clk
0:00:34.5]} 75... Qd5+ {[%clk 0:00:21.2]} 76. Kf4 {[%clk 0:00:34.1]} 76... Qd2+
{[%clk 0:00:21.6]} 77. Kf3 {[%clk 0:00:34.9]} 77... Qd1+ {[%clk 0:00:22.6]} 78.
Kf2 {[%clk 0:00:36.3]} 78... Qd2+ {[%clk 0:00:23.7]} 79. Kg3 {[%clk 0:00:35.6]}
79... Qe3+ {[%clk 0:00:21.8]} 80. Kh4 {[%clk 0:00:36.4]} 80... Qf2+ {[%clk
0:00:23]} 81. Kh5 {[%clk 0:00:37.5]} 81... Qh2+ {[%clk 0:00:20.7]} 82. Kg6
{[%clk 0:00:37.3]} 82... Qd6+ {[%clk 0:00:21.7]} 83. Qf6 {[%clk 0:00:35.8]}
83... a1=Q {[%clk 0:00:13.1]} 84. Qc8+ {[%clk 0:00:35.5]} 84... Kb3 {[%clk
0:00:10.6]} 85. Qb7+ {[%clk 0:00:36.2]} 85... Ka2 {[%clk 0:00:07.3]} 86. Qa7+
{[%clk 0:00:35.3]} 86... Kb3 {[%clk 0:00:08.6]} 87. Qxa1 {[%clk 0:00:35.1]}
87... Qd3+ {[%clk 0:00:09.8]} 88. Qf5 {[%clk 0:00:35.1]} 88... Qd6+ {[%clk
0:00:11.3]} 89. Qaf6 {[%clk 0:00:35.9]} 89... Qc7 {[%clk 0:00:11.4]} 1-0

[Event "*** Titled Tuesday 3|2 Blitz"]
[Site "Chess.com"]
[Date "2016.06.07"]
[Round "5"]
[White "162a54f5d"]
[Black "RamonManon0g"]
[Result "1-0"]
[WhiteElo "2152"]
[BlackElo "2095"]
[TimeControl "180+2"]
[EndTime "11:54:45 PDT"]
[Termination "162a54f5d won by resignation"]

1. d4 {[%clk 0:03:01.9]} 1... Nf6 {[%clk 0:03:00.5]} 2. Nf3 {[%clk 0:03:02.7]}
2... e6 {[%clk 0:03:01.9]} 3. g3 {[%clk 0:03:04]} 3... b6 {[%clk 0:03:02.3]} 4.
Bg2 {[%clk 0:03:05.2]} 4... Bb7 {[%clk 0:03:04.2]} 5. O-O {[%clk 0:03:06.8]}
5... Be7 {[%clk 0:03:05.7]} 6. c4 {[%clk 0:03:08.2]} 6... O-O {[%clk 0:03:07.2]}
7. d5 {[%clk 0:03:09.6]} 7... d6 {[%clk 0:03:02.4]} 8. dxe6 {[%clk 0:03:08.6]}
8... fxe6 {[%clk 0:02:58]} 9. Nc3 {[%clk 0:03:05]} 9... Qd7 {[%clk 0:02:47.3]}
10. Ne5 {[%clk 0:03:04.5]} 10... dxe5 {[%clk 0:02:37.2]} 11. Bxb7 {[%clk
0:03:04.8]} 11... Qxd1 {[%clk 0:02:33.1]} 12. Rxd1 {[%clk 0:03:06.7]} 12... Nbd7
{[%clk 0:02:34.6]} 13. Bxa8 {[%clk 0:03:07.5]} 13... Rxa8 {[%clk 0:02:36.5]} 14.
Bg5 {[%clk 0:03:08.3]} 14... h6 {[%clk 0:02:34.9]} 15. Rxd7 {[%clk 0:03:07]} 1-0

[Event "*** Titled Tuesday 3|2 Blitz"]
[Site "Chess.com"]
[Date "2016.06.07"]
[Round "5"]
[White "playerzr"]
[Black "1stSecond"]
[Result "0-1"]
[WhiteElo "1956"]
[BlackElo "2557"]
[TimeControl "180+2"]
[EndTime "11:58:16 PDT"]
[Termination "1stSecond won on time"]

1. d4 {[%clk 0:03:01.3]} 1... Nf6 {[%clk 0:03:01.1]} 2. c4 {[%clk 0:03:01]} 2...
c5 {[%clk 0:03:02.8]} 3. Nf3 {[%clk 0:03:00]} 3... g6 {[%clk 0:03:03.4]} 4. g3
{[%clk 0:02:56.3]} 4... Bg7 {[%clk 0:03:04.7]} 5. d5 {[%clk 0:02:53.1]} 5... b5
{[%clk 0:03:03.7]} 6. cxb5 {[%clk 0:02:46.8]} 6... a6 {[%clk 0:03:05]} 7. Bg2
{[%clk 0:02:46.5]} 7... O-O {[%clk 0:03:04.9]} 8. bxa6 {[%clk 0:02:40.4]} 8...
d6 {[%clk 0:03:05.7]} 9. O-O {[%clk 0:02:41]} 9... Nbd7 {[%clk 0:03:04.5]} 10.
Nc3 {[%clk 0:02:37.7]} 10... Nb6 {[%clk 0:03:05.7]} 11. Qc2 {[%clk 0:02:33.2]}
11... Bf5 {[%clk 0:03:06.7]} 12. e4 {[%clk 0:02:30]} 12... Bc8 {[%clk
0:03:08.1]} 13. Rd1 {[%clk 0:02:24.1]} 13... Bxa6 {[%clk 0:03:09.4]} 14. a4
{[%clk 0:01:52.7]} 14... Ng4 {[%clk 0:03:05.9]} 15. h3 {[%clk 0:01:43.3]} 15...
Ne5 {[%clk 0:03:07.1]} 16. Nxe5 {[%clk 0:01:44.2]} 16... Bxe5 {[%clk 0:03:09]}
17. b3 {[%clk 0:01:37.9]} 17... Nd7 {[%clk 0:03:07.6]} 18. Bb2 {[%clk
0:01:35.9]} 18... Qa5 {[%clk 0:03:08.6]} 19. Na2 {[%clk 0:00:50.9]} 19... Bxb2
{[%clk 0:03:10.5]} 20. Qxb2 {[%clk 0:00:51.6]} 20... Rfb8 {[%clk 0:03:12.1]} 21.
Qc2 {[%clk 0:00:33.1]} 21... Rb6 {[%clk 0:03:10.6]} 22. Rab1 {[%clk 0:00:32.5]}
22... Rab8 {[%clk 0:03:11.6]} 23. Kh2 {[%clk 0:00:14.6]} 23... R6b7 {[%clk
0:03:00.5]} 24. f4 {[%clk 0:00:13.7]} 24... Nb6 {[%clk 0:02:56.4]} 25. e5 {[%clk
0:00:13.2]} 25... c4 {[%clk 0:02:57.8]} 0-1

[Event "*** Titled Tuesday 3|2 Blitz"]
[Site "Chess.com"]
[Date "2016.06.07"]
[Round "5"]
[White "dondimi"]
[Black "rdclayton"]
[Result "1-0"]
[WhiteElo "2442"]
[BlackElo "2068"]
[TimeControl "180+2"]
[EndTime "11:58:57 PDT"]
[Termination "dondimi won by resignation"]

1. Nf3 {[%clk 0:03:01.9]} 1... d5 {[%clk 0:03:00]} 2. d4 {[%clk 0:03:01.8]} 2...
Nf6 {[%clk 0:02:57.8]} 3. c4 {[%clk 0:03:03.2]} 3... g6 {[%clk 0:02:57.6]} 4.
cxd5 {[%clk 0:03:01.3]} 4... Nxd5 {[%clk 0:02:59.5]} 5. e4 {[%clk 0:03:02.2]}
5... Nb6 {[%clk 0:03:00.5]} 6. h3 {[%clk 0:03:03.1]} 6... Bg7 {[%clk 0:03:00.4]}
7. Nc3 {[%clk 0:03:02.3]} 7... O-O {[%clk 0:02:54.5]} 8. Be2 {[%clk 0:03:03.9]}
8... Nc6 {[%clk 0:02:53.5]} 9. Be3 {[%clk 0:03:02.5]} 9... f5 {[%clk 0:02:13.3]}
10. exf5 {[%clk 0:02:58.8]} 10... Bxf5 {[%clk 0:02:11.9]} 11. O-O {[%clk
0:02:57.9]} 11... Nd5 {[%clk 0:01:46]} 12. Qb3 {[%clk 0:02:56.1]} 12... e6
{[%clk 0:01:44.8]} 13. Nxd5 {[%clk 0:02:50.6]} 13... exd5 {[%clk 0:01:43.5]} 14.
Qxb7 {[%clk 0:02:48.6]} 14... Ne7 {[%clk 0:01:37.8]} 15. Rfc1 {[%clk 0:02:42]}
15... c6 {[%clk 0:01:14.6]} 16. Bg5 {[%clk 0:02:26.8]} 16... Bf6 {[%clk
0:01:02]} 17. Bxf6 {[%clk 0:02:20.8]} 17... Rxf6 {[%clk 0:01:03.9]} 18. Ne5
{[%clk 0:02:17.2]} 18... Rb8 {[%clk 0:00:59.7]} 19. Qxa7 {[%clk 0:02:15.4]}
19... Rxb2 {[%clk 0:01:00.2]} 20. Bf3 {[%clk 0:02:13.5]} 20... Be4 {[%clk
0:00:57.7]} 21. Bxe4 {[%clk 0:02:11]} 21... dxe4 {[%clk 0:00:57.8]} 22. Ng4
{[%clk 0:02:12.9]} 22... Rd6 {[%clk 0:00:56.8]} 23. Rab1 {[%clk 0:02:09.4]}
23... Rxb1 {[%clk 0:00:51.4]} 24. Rxb1 {[%clk 0:02:10]} 24... Rxd4 {[%clk
0:00:16.2]} 25. Rb8 {[%clk 0:02:07.5]} 25... Nc8 {[%clk 0:00:17.6]} 26. Nh6+
{[%clk 0:02:07]} 26... Kh8 {[%clk 0:00:16.9]} 27. Nf7+ {[%clk 0:02:05.3]} 1-0

[Event "*** Titled Tuesday 3|2 Blitz"]
[Site "Chess.com"]
[Date "2016.06.07"]
[Round "5"]
[White "theprosecution1"]
[Black "INbetweenMOVE"]
[Result "1-0"]
[WhiteElo "2466"]
[BlackElo "2317"]
[TimeControl "180+2"]
[EndTime "11:59:35 PDT"]
[Termination "theprosecution1 won by resignation"]

1. e4 {[%clk 0:03:01.9]} 1... e5 {[%clk 0:02:58.5]} 2. Nf3 {[%clk 0:03:02.4]}
2... Nc6 {[%clk 0:02:59.7]} 3. Nc3 {[%clk 0:03:03.4]} 3... Nf6 {[%clk
0:03:00.5]} 4. Bb5 {[%clk 0:03:05]} 4... Bc5 {[%clk 0:03:01.6]} 5. Nxe5 {[%clk
0:03:05.9]} 5... Nxe5 {[%clk 0:02:59.8]} 6. d4 {[%clk 0:03:06.9]} 6... Bd6
{[%clk 0:02:53.5]} 7. f4 {[%clk 0:03:07.5]} 7... Neg4 {[%clk 0:02:47.4]} 8. e5
{[%clk 0:03:08.3]} 8... Bb4 {[%clk 0:02:49.1]} 9. O-O {[%clk 0:03:06]} 9... O-O
{[%clk 0:02:50.1]} 10. a3 {[%clk 0:02:56.5]} 10... Bxc3 {[%clk 0:02:41.5]} 11.
bxc3 {[%clk 0:02:58.4]} 11... d6 {[%clk 0:02:25.8]} 12. exf6 {[%clk 0:02:56.7]}
12... Nxf6 {[%clk 0:02:24.6]} 13. f5 {[%clk 0:02:52.6]} 13... Ne4 {[%clk
0:02:15.4]} 14. Bd3 {[%clk 0:02:36.4]} 14... Re8 {[%clk 0:02:12.4]} 15. f6
{[%clk 0:02:31.3]} 15... g6 {[%clk 0:01:39.9]} 16. Qf3 {[%clk 0:02:21.4]} 16...
d5 {[%clk 0:01:24.8]} 17. Qf4 {[%clk 0:02:04.1]} 17... Qd6 {[%clk 0:01:23.8]}
18. Qh6 {[%clk 0:01:53]} 18... Qf8 {[%clk 0:01:24.4]} 19. Qh4 {[%clk 0:01:52.1]}
19... h5 {[%clk 0:01:15.8]} 20. Bf4 {[%clk 0:01:41.8]} 20... Nxc3 {[%clk
0:00:55.5]} 21. Bxc7 {[%clk 0:01:36.4]} 21... Bg4 {[%clk 0:00:50.6]} 22. Be5
{[%clk 0:01:27.2]} 22... Be2 {[%clk 0:00:48.9]} 23. Bxg6 {[%clk 0:01:24.2]}
23... Bxf1 {[%clk 0:00:27.2]} 24. Qxh5 {[%clk 0:01:22.6]} 1-0

[Event "*** Titled Tuesday 3|2 Blitz"]
[Site "Chess.com"]
[Date "2016.06.07"]
[Round "5"]
[White "Winehouse83"]
[Black "dretch"]
[Result "0-1"]
[WhiteElo "2461"]
[BlackElo "2591"]
[TimeControl "180+2"]
[EndTime "12:00:01 PDT"]
[Termination "dretch won by resignation"]

1. d4 {[%clk 0:03:01.9]} 1... d5 {[%clk 0:03:00.9]} 2. c4 {[%clk 0:03:02.9]}
2... c6 {[%clk 0:03:01.9]} 3. Nf3 {[%clk 0:03:03.3]} 3... Nf6 {[%clk 0:03:02.8]}
4. Nc3 {[%clk 0:03:04.2]} 4... dxc4 {[%clk 0:03:03.7]} 5. a4 {[%clk 0:03:02]}
5... e6 {[%clk 0:03:03.7]} 6. e4 {[%clk 0:02:58.3]} 6... Bb4 {[%clk 0:03:03.9]}
7. e5 {[%clk 0:02:58.7]} 7... Nd5 {[%clk 0:03:05.1]} 8. Bd2 {[%clk 0:02:59.9]}
8... b5 {[%clk 0:03:06.5]} 9. Be2 {[%clk 0:02:55.3]} 9... Bb7 {[%clk 0:02:54.3]}
10. Ne4 {[%clk 0:02:40.9]} 10... Be7 {[%clk 0:02:55.2]} 11. axb5 {[%clk
0:02:38.3]} 11... cxb5 {[%clk 0:02:56.2]} 12. Ba5 {[%clk 0:02:39.1]} 12... Qd7
{[%clk 0:02:53.7]} 13. b3 {[%clk 0:02:38.2]} 13... Nc6 {[%clk 0:02:51.7]} 14.
O-O {[%clk 0:02:38.2]} 14... Rc8 {[%clk 0:02:25.5]} 15. bxc4 {[%clk 0:02:32.5]}
15... bxc4 {[%clk 0:02:25.8]} 16. Nc5 {[%clk 0:02:04]} 16... Bxc5 {[%clk
0:02:19.3]} 17. dxc5 {[%clk 0:02:05.9]} 17... c3 {[%clk 0:02:05.1]} 18. Qc2
{[%clk 0:01:58.6]} 18... Nxa5 {[%clk 0:01:53.8]} 19. Rxa5 {[%clk 0:02:00.5]}
19... O-O {[%clk 0:01:49.6]} 20. Rb1 {[%clk 0:01:51.6]} 20... Nf4 {[%clk
0:01:42.7]} 21. Ng5 {[%clk 0:01:12.1]} 21... Nxe2+ {[%clk 0:01:36.1]} 22. Kf1
{[%clk 0:01:03]} 22... Bxg2+ {[%clk 0:01:13.7]} 23. Kxg2 {[%clk 0:00:55.7]}
23... Nf4+ {[%clk 0:01:12]} 24. Kg3 {[%clk 0:00:35.8]} 24... Qd3+ {[%clk
0:01:11.9]} 25. Qxd3 {[%clk 0:00:34.8]} 25... Nxd3 {[%clk 0:01:13.1]} 26. Ra2
{[%clk 0:00:25]} 26... Rxc5 {[%clk 0:01:13.9]} 27. Rc2 {[%clk 0:00:25.8]} 27...
Rxe5 {[%clk 0:01:14.6]} 28. Nf3 {[%clk 0:00:25.4]} 28... Rc5 {[%clk 0:01:14.1]}
29. Rb3 {[%clk 0:00:25.9]} 29... Rfc8 {[%clk 0:01:13.8]} 30. Nd4 {[%clk
0:00:26.4]} 30... Rg5+ {[%clk 0:01:10]} 31. Kf3 {[%clk 0:00:26.9]} 31... Ne1+
{[%clk 0:01:11]} 0-1